Workbook

Sheet Introduction
G1: =RIGHT(CELL("filename",A1), LEN(CELL("filename",A1)) - SEARCH("]", CELL("filename",A1))) -> Introduction
G2: by Hugues Pirotte
D4: Below is a list of the worksheets of the file, by order of appearance: (CTRL+h = back to "Introduction") | H4: =MID(CELL("filename",A1),SEARCH("[",CELL("filename",A1))+1,SEARCH(".",CELL("filename",A1))-SEARCH("[",CELL("filename",A1))-1) -> INGESTriskmgt (2012) - PREPA - Matrix calculus and Monte carlo
C5: 1 | D5: Introduction
C6: 2 | D6: Matrix
C7: 3 | D7: MC simulations
C8: 4 | D8: Examples
C9: 5 | D9: Examples2
C10: 6 | D10: Example - cumulative
C11: 7 | D11: Example - correlated randoms

Sheet Matrix
A1: =MID(CELL("filename",A1),SEARCH("[",CELL("filename",A1))+1,SEARCH(".",CELL("filename",A1))-SEARCH("[",CELL("filename",A1))-1) &" > "&RIGHT(CELL("filename", A1), LEN(CELL("filename", A1)) - SEARCH("]", CELL("filename", A1))) -> INGESTriskmgt (2012) - PREPA - Matrix calculus and Monte carlo > Matrix
B3: 1 | D3: Some comments
C4: a | D4: You need to know exactly how much space you need for the result.
C5: b | D5: Any function in Excel that uses tables or matrices, in fact uses the notion of Range.
D6: Range(cells(1,1),cells(2.2))
D7: Range.FormulaArray
C8: c | D8: Any "array" result must be confirmed/entered with "CTRL+shift+ENTER"
C9: d | D9: The functions that need this CTRL+shift+ENTER:
D10: FREQUENCY()
D11: Matrix functions: MMULT(), MINVERSE(),….
B13: 2 | D13: Typical examples in our course
C14: a | D14: Inverting a matrix for the purposes of finding the weights in a system…
E16: 3 | F16: 5 | H16: units1 | I16: units 2 | K16: 1.05 | L16: 1.05
K17: 2 | L17: 0.5
H22: =MMULT(E16:F16,MINVERSE(K16:L17)) -> 5.396825397 | I22: -1.333333333
C24: b | D24: In an investment course, for the optimal asset allocation, or to
D25: draw an efficent frontier, you need also to invert a matrix….
D26: …the variance/covariance matrix. (Elton Gruber)
C28: c | D28: To find the Choleski decomposition
B30: 3 | C30: For VBA
C31: a | D31: With ALT+F11
C32: b | D32: Two ways of programming: functions or subs
C33: c | D33: Example of function to show contents of cells
D35: 100
D36: 200
D37: =D35+D36 -> 300 | E37: =[1]!GetFormula(D37) -> 1004
E38: =GetFormulaNumbers(D37) -> =+
C39: d | D39: Use "Application.ScreenUpdating" at the beginning and at the end
D40: of your programme
C41: e | D41: To access the contents of a cell or a sheet in VBA:
D42: Cells(line, column)
D43: Sheets("xxx")
D44: Workbooks("xxx")
D45: Copy and Paste function need you to activate the Sheet where you are.

Sheet MC simulations
A1: =MID(CELL("filename",A1),SEARCH("[",CELL("filename",A1))+1,SEARCH(".",CELL("filename",A1))-SEARCH("[",CELL("filename",A1))-1) &" > "&RIGHT(CELL("filename", A1), LEN(CELL("filename", A1)) - SEARCH("]", CELL("filename", A1))) -> INGESTriskmgt (2012) - PREPA - Matrix calculus and Monte carlo > MC simulations
B3: 1 | C3: The idea
C4: a | D4: For a binomial tree
C12: b | D12: With MC simulations, you just let the system
D13: produce examples following a distribution of
D14: probabilities…
D15: And to get a good probability of seeing some
D16: observations in the extremes…you have to generate
D17: many simulations…
B19: 2 | C19: Generating random numbers
C20: a | D20: Use the RAND() formula - generates uniform numbers [0,1]
D21: =RAND() -> 0.7120772696
D22: You always have a probability density function and
D23: the cumulative density function.
C31: b | D31: To imagine the roll of a dice
D32: =RAND() -> 0.5105673041 | E32: =VLOOKUP(D32,F32:G37,2) -> 3 | F32: =G32/6 -> 0.1666666667 | G32: 1
F33: 0.3333333333 | G33: 2
F34: 0.5 | G34: 3
F35: 0.6666666667 | G35: 4
F36: 0.8333333333 | G36: 5
F37: 1 | G37: 6
D38: For a normal random observation…
D39: =RAND() -> 0.7171727766 | E39: =NORMSINV(D39) -> 0.574463125
C40: c | D40: The precision…
D41: is
C44: d | D44: There are small problems with MC simulations.
D45: In particular, the volatility of simulations is a little bit
D46: overestimated by the #of trials.
D47: There are some ways to be quicker and increase the
D48: properties that are desired….
D49: …the principle of antithetic variables.
D50: ---> produce 1'000 simulations, copy them but with the opposite sign
B52: 3 | C52: Generate correlated random numbers

Sheet Examples
A1: =MID(CELL("filename",A1),SEARCH("[",CELL("filename",A1))+1,SEARCH(".",CELL("filename",A1))-SEARCH("[",CELL("filename",A1))-1) &" > "&RIGHT(CELL("filename", A1), LEN(CELL("filename", A1)) - SEARCH("]", CELL("filename", A1))) -> INGESTriskmgt (2012) - PREPA - Matrix calculus and Monte carlo > Examples
N2: (to be generated)
D3: average | E3: =AVERAGE(E12:E260) -> 0.02349479975 | F3: 1st moment | M3: average | N3: 0.05
D4: std deviation | E4: =STDEV(E12:E260) -> 0.9867276253 | F4: 2nd moment | M4: sigma | N4: 0.3
N5: (check)
M6: average | N6: =AVERAGE(N12:N260) -> 0.05704843992
M7: sigma | N7: =STDEV(N12:N260) -> 0.2960182876
D11: Uniform random (p) | E11: Normally dist. Z random | N11: Normally distributed X (yearly)
D12: =RAND() -> 0.2420055259 | E12: =NORMSINV(D12) -> -0.6998659049 | N12: =$N$3*1+$N$4*SQRT(1)*E12 -> -0.1599597715
D13: =RAND() -> 0.2436827459 | E13: =NORMSINV(D13) -> -0.6945051187 | N13: =$N$3*1+$N$4*SQRT(1)*E13 -> -0.1583515356
D14: 0.1961720799 | E14: -0.8553739507 | N14: -0.2066121852
D15: 0.575291216 | E15: 0.1898616202 | N15: 0.1069584861
D16: 0.5297544728 | E16: 0.07465268506 | N16: 0.07239580552
D17: 0.6578518291 | E17: 0.4066074265 | N17: 0.171982228
D18: 0.1075418184 | E18: -1.239707406 | N18: -0.3219122218
D19: 0.1607852599 | E19: -0.991235664 | N19: -0.2473706992
D20: 0.370746799 | E20: -0.3298760802 | N20: -0.04896282405
D21: 0.5702284083 | E21: 0.176955704 | N21: 0.1030867112
D22: 0.4652593579 | E22: -0.08719222953 | N22: 0.02384233114
D23: 0.08290719004 | E23: -1.385779054 | N23: -0.3657337163
D24: 0.6917645405 | E24: 0.5008582047 | N24: 0.2002574614
D25: 0.6983800831 | E25: 0.5197471294 | N25: 0.2059241388
D26: 0.3763184919 | E26: -0.3151642024 | N26: -0.04454926072
D27: 0.9204885204 | E27: 1.408365197 | N27: 0.4725095591
D28: 0.6168454481 | E28: 0.2972061803 | N28: 0.1391618541
D29: 0.9027357722 | E29: 1.29729863 | N29: 0.439189589
D30: 0.9196355037 | E30: 1.402623995 | N30: 0.4707871986
D31: 0.2674884613 | E31: -0.6204266634 | N31: -0.136127999
D32: 0.2155154702 | E32: -0.7874287191 | N32: -0.1862286157
D33: 0.4968377703 | E33: -0.007926617334 | N33: 0.0476220148
D34: 0.6232008134 | E34: 0.3138981793 | N34: 0.1441694538
D35: 0.06998721276 | E35: -1.475886272 | N35: -0.3927658815
D36: 0.9300870567 | E36: 1.476439719 | N36: 0.4929319157
D37: 0.4972095304 | E37: -0.006994726985 | N37: 0.0479015819
D38: 0.780664696 | E38: 0.774440049 | N38: 0.2823320147
D39: 0.002713804425 | E39: -2.780495042 | N39: -0.7841485126
D40: 0.3384819633 | E40: -0.4166096816 | N40: -0.07498290449
D41: 0.3630037675 | E41: -0.3504413014 | N41: -0.05513239043
D42: 0.9283999094 | E42: 1.463977189 | N42: 0.4891931567
D43: 0.4706747384 | E43: -0.07357385332 | N43: 0.027927844
D44: 0.4691452427 | E44: -0.07741867437 | N44: 0.02677439769
D45: 0.2138377895 | E45: -0.7931755012 | N45: -0.1879526504
D46: 0.1886819599 | E46: -0.8827637691 | N46: -0.2148291307
D47: 0.2173137239 | E47: -0.7812976571 | N47: -0.1843892971
D48: 0.757520395 | E48: 0.6983486042 | N48: 0.2595045813
D49: 0.8960529074 | E49: 1.259377021 | N49: 0.4278131064
D50: 0.5517141496 | E50: 0.1299933339 | N50: 0.08899800016
D51: 0.08134812548 | E51: -1.396060588 | N51: -0.3688181763
D52: 0.8467497448 | E52: 1.022592599 | N52: 0.3567777797
D53: 0.2784456416 | E53: -0.5874652487 | N53: -0.1262395746
D54: 0.3109533106 | E54: -0.4931499756 | N54: -0.09794499269
D55: 0.344331684 | E55: -0.4006696373 | N55: -0.07020089119
D56: 0.629627135 | E56: 0.3308659668 | N56: 0.14925979
D57: 0.676593008 | E57: 0.4581927279 | N57: 0.1874578184
D58: 0.8563253669 | E58: 1.063954601 | N58: 0.3691863804
D59: 0.03751187219 | E59: -1.780319153 | N59: -0.4840957459
D60: 0.8972276681 | E60: 1.265911793 | N60: 0.4297735379
D61: 0.3109711527 | E61: -0.4930994698 | N61: -0.09792984093
D62: 0.9314270271 | E62: 1.486503674 | N62: 0.4959511021
D63: 0.0847695833 | E63: -1.373686059 | N63: -0.3621058178
D64: 0.7856800838 | E64: 0.7915213329 | N64: 0.2874563999
D65: 0.2415407912 | E65: -0.7013548644 | N65: -0.1604064593
D66: 0.1526362219 | E66: -1.025192336 | N66: -0.2575577007
D67: 0.8898870532 | E67: 1.225927674 | N67: 0.4177783022
D68: 0.6798414684 | E68: 0.4672555375 | N68: 0.1901766612
D69: 0.3438770755 | E69: -0.4019047172 | N69: -0.07057141517
D70: 0.9170865665 | E70: 1.385738175 | N70: 0.4657214524
D71: 0.06733784259 | E71: -1.495915467 | N71: -0.3987746401
D72: 0.05346161885 | E72: -1.612177878 | N72: -0.4336533634
D73: 0.9259495761 | E73: 1.446272279 | N73: 0.4838816836
D74: 0.89606301 | E74: 1.259432989 | N74: 0.4278298968
D75: 0.2376277544 | E75: -0.713954187 | N75: -0.1641862561
D76: 0.4783082735 | E76: -0.05439991451 | N76: 0.03368002565
D77: =RAND() -> 0.9151514934 | E77: =NORMSINV(D77) -> 1.373178013 | N77: =$N$3*1+$N$4*SQRT(1)*E77 -> 0.461953404
D78: 0.904047311 | E78: 1.304963203 | N78: 0.4414889609
D79: 0.289322268 | E79: -0.5553657186 | N79: -0.1166097156
D80: 0.7315132741 | E80: 0.6173961638 | N80: 0.2352188491
D81: 0.1055198051 | E81: -1.250711892 | N81: -0.3252135675
D82: 0.6799662744 | E82: 0.4676044932 | N82: 0.190281348
D83: 0.5296347533 | E83: 0.07435175868 | N83: 0.0723055276
D84: 0.2282124375 | E84: -0.7447466783 | N84: -0.1734240035
D85: 0.2380941008 | E85: -0.7124467069 | N85: -0.1637340121
D86: 0.7831093551 | E86: 0.7827374769 | N86: 0.2848212431
D87: 0.7638662091 | E87: 0.7187944434 | N87: 0.265638333
D88: 0.2256677614 | E88: -0.7531903744 | N88: -0.1759571123
D89: 0.8647570621 | E89: 1.101944327 | N89: 0.3805832982
D90: 0.5094014248 | E90: 0.02356805884 | N90: 0.05707041765
D91: 0.1802923156 | E91: -0.9142516478 | N91: -0.2242754943
D92: 0.9379789332 | E92: 1.538026508 | N92: 0.5114079523
D93: 0.4143102151 | E93: -0.2164712536 | N93: -0.01494137608
D94: 0.5862710454 | E94: 0.2179630396 | N94: 0.1153889119
D95: 0.6432304928 | E95: 0.367107257 | N95: 0.1601321771
D96: 0.8184743414 | E96: 0.9095662257 | N96: 0.3228698677
D97: 0.4016079164 | E97: -0.2491873905 | N97: -0.02475621714
D98: 0.8299052463 | E98: 0.9537908788 | N98: 0.3361372636
D99: 0.8063446622 | E99: 0.8645047436 | N99: 0.3093514231
D100: 0.895156141 | E100: 1.254424594 | N100: 0.4263273781
D101: 0.6073526356 | E101: 0.2724256808 | N101: 0.1317277042
D102: 0.6363134207 | E102: 0.3486219342 | N102: 0.1545865803
D103: 0.101553574 | E103: -1.272748932 | N103: -0.3318246795
D104: 0.4261666393 | E104: -0.1861421627 | N104: -0.005842648824
D105: 0.6219970256 | E105: 0.3107299209 | N105: 0.1432189763
D106: 0.633256678 | E106: 0.3404912063 | N106: 0.1521473619
D107: 0.5077099114 | E107: 0.01932708505 | N107: 0.05579812551
D108: 0.9412638758 | E108: 1.565472125 | N108: 0.5196416375
D109: 0.1275470244 | E109: -1.138063306 | N109: -0.2914189919
D110: 0.9674678126 | E110: 1.844815549 | N110: 0.6034446646
D111: 0.7283293693 | E111: 0.6077681421 | N111: 0.2323304426
D112: 0.7400678783 | E112: 0.6435546844 | N112: 0.2430664053
D113: 0.6953828056 | E113: 0.5111666217 | N113: 0.2033499865
D114: 0.275031366 | E114: -0.5976661262 | N114: -0.1292998379
D115: 0.6707025452 | E115: 0.4418539306 | N115: 0.1825561792
D116: 0.4609928196 | E116: -0.09793281923 | N116: 0.02062015423
D117: 0.3767828004 | E117: -0.3139413281 | N117: -0.04418239843
D118: 0.8931647538 | E118: 1.243535704 | N118: 0.4230607112
D119: 0.1116427874 | E119: -1.21783791 | N119: -0.3153513731
D120: 0.8890351058 | E120: 1.221412733 | N120: 0.41642382
D121: 0.8850622335 | E121: 1.200679542 | N121: 0.4102038625
D122: 0.4617655678 | E122: -0.09598670006 | N122: 0.02120398998
D123: 0.3764338378 | E123: -0.3148603658 | N123: -0.04445810975
D124: 0.4560949315 | E124: -0.1102767912 | N124: 0.01691696263
D125: 0.2980048266 | E125: -0.5301475211 | N125: -0.1090442563
D126: 0.524859515 | E126: 0.06235394514 | N126: 0.06870618354
D127: 0.2612358151 | E127: -0.6395401084 | N127: -0.1418620325
D128: 0.23919591 | E128: -0.7088914843 | N128: -0.1626674453
D129: 0.892620055 | E129: 1.240582852 | N129: 0.4221748555
D130: 0.03065597519 | E130: -1.871239079 | N130: -0.5113717237
D131: 0.5873407038 | E131: 0.2207095532 | N131: 0.116212866
D132: 0.0181102388 | E132: -2.094443653 | N132: -0.5783330958
D133: 0.1371739905 | E133: -1.093104362 | N133: -0.2779313086
D134: 0.275366876 | E134: -0.5966609758 | N134: -0.1289982927
D135: 0.2293517117 | E135: -0.7409835355 | N135: -0.1722950606
D136: 0.3302033355 | E136: -0.4393517652 | N136: -0.08180552957
D137: 0.2572118127 | E137: -0.6519651952 | N137: -0.1455895586
D138: 0.7441359884 | E138: 0.6561493673 | N138: 0.2468448102
D139: 0.4424891889 | E139: -0.1446611961 | N139: 0.006601641167
D140: 0.6312762328 | E140: 0.3352353812 | N140: 0.1505706144
D141: =RAND() -> 0.779263527 | E141: =NORMSINV(D141) -> 0.7697082993 | N141: =$N$3*1+$N$4*SQRT(1)*E141 -> 0.2809124898
D142: 0.6852037193 | E142: 0.4823004025 | N142: 0.1946901207
D143: 0.1667168425 | E143: -0.9672207625 | N143: -0.2401662287
D144: 0.3442954071 | E144: -0.400768172 | N144: -0.0702304516
D145: 0.7656897365 | E145: 0.7247253713 | N145: 0.2674176114
D146: 0.3833319063 | E146: -0.2967415762 | N146: -0.03902247286
D147: 0.6232095137 | E147: 0.3139210891 | N147: 0.1441763267
D148: 0.6868652542 | E148: 0.4869842512 | N148: 0.1960952753
D149: 0.2457039753 | E149: -0.6880711921 | N149: -0.1564213576
D150: 0.9578527792 | E150: 1.726294516 | N150: 0.5678883547
D151: 0.241390316 | E151: -0.7018373038 | N151: -0.1605511911
D152: 0.433288851 | E152: -0.1680070892 | N152: -0.0004021267586
D153: 0.2394099636 | E153: -0.7082018344 | N153: -0.1624605503
D154: 0.3678373039 | E154: -0.3375867777 | N154: -0.0512760333
D155: 0.7772677534 | E155: 0.7629981601 | N155: 0.278899448
D156: 0.9384448484 | E156: 1.541848952 | N156: 0.5125546857
D157: 0.5475942186 | E157: 0.1195854291 | N157: 0.08587562872
D158: 0.9220527373 | E158: 1.419015403 | N158: 0.475704621
D159: 0.9179145197 | E159: 1.391179636 | N159: 0.4673538909
D160: 0.5568534941 | E160: 0.1429964159 | N160: 0.09289892477
D161: 0.02997188151 | E161: -1.881207021 | N161: -0.5143621064
D162: 0.9882977992 | E162: 2.266768006 | N162: 0.7300304019
D163: 0.04098554746 | E163: -1.739362074 | N163: -0.4718086222
D164: 0.639021997 | E164: 0.3558458555 | N164: 0.1567537567
D165: 0.7956653423 | E165: 0.8262376132 | N165: 0.297871284
D166: 0.09479462529 | E166: -1.311795183 | N166: -0.343538555
D167: 0.1790972231 | E167: -0.9188109842 | N167: -0.2256432953
D168: 0.568189141 | E168: 0.1717657179 | N168: 0.1015297154
D169: 0.1808680385 | E169: -0.9120620071 | N169: -0.2236186021
D170: 0.3717877667 | E170: -0.3271221051 | N170: -0.04813663152
D171: 0.04659395263 | E171: -1.678816021 | N171: -0.4536448063
D172: 0.05725318698 | E172: -1.578257898 | N172: -0.4234773694
D173: 0.05656282869 | E173: -1.584299158 | N173: -0.4252897473
D174: 0.9441283278 | E174: 1.590405886 | N174: 0.5271217658
D175: 0.7055897115 | E175: 0.540545956 | N175: 0.2121637868
D176: 0.8265818862 | E176: 0.9407436825 | N176: 0.3322231048
D177: 0.5066780936 | E177: 0.01674028012 | N177: 0.05502208404
D178: 0.9019168429 | E178: 1.292551237 | N178: 0.437765371
D179: 0.6011909519 | E179: 0.2564309445 | N179: 0.1269292834
D180: 0.2761496315 | E180: -0.5943182672 | N180: -0.1282954802
D181: 0.5405372485 | E181: 0.1017873043 | N181: 0.08053619128
D182: 0.5760762238 | E182: 0.1918655128 | N182: 0.1075596538
D183: 0.8935002233 | E183: 1.245359718 | N183: 0.4236079154
D184: 0.1518382003 | E184: -1.028581445 | N184: -0.2585744336
D185: 0.1488544758 | E185: -1.041359026 | N185: -0.2624077077
D186: 0.6997696107 | E186: 0.5237380044 | N186: 0.2071214013
D187: 0.9063806453 | E187: 1.318791851 | N187: 0.4456375553
D188: 0.8127354085 | E188: 0.8880215062 | N188: 0.3164064519
D189: 0.6996892356 | E189: 0.5235069314 | N189: 0.2070520794
D190: 0.3901959949 | E190: -0.2788082409 | N190: -0.03364247228
D191: 0.044419163 | E191: -1.701557629 | N191: -0.4604672888
D192: 0.3050402875 | E192: -0.5099584448 | N192: -0.1029875335
D193: 0.4821273107 | E193: -0.04481518496 | N193: 0.03655544451
D194: 0.135814709 | E194: -1.099317921 | N194: -0.2797953764
D195: 0.7244195256 | E195: 0.5960213729 | N195: 0.2288064119
D196: 0.7199828834 | E196: 0.5827906601 | N196: 0.224837198
D197: 0.08066528661 | E197: -1.40061052 | N197: -0.3701831561
D198: 0.3637263529 | E198: -0.348515992 | N198: -0.05455479761
D199: 0.8084237438 | E199: 0.8721024083 | N199: 0.3116307225
D200: 0.1465887916 | E200: -1.051176393 | N200: -0.265352918
D201: 0.3537355923 | E201: -0.3752545226 | N201: -0.06257635679
D202: 0.8268348998 | E202: 0.9417313498 | N202: 0.3325194049
D203: 0.05435272529 | E203: -1.604039026 | N203: -0.4312117078
... 57 more rows

Sheet Examples2
A1: =MID(CELL("filename",A1),SEARCH("[",CELL("filename",A1))+1,SEARCH(".",CELL("filename",A1))-SEARCH("[",CELL("filename",A1))-1) &" > "&RIGHT(CELL("filename", A1), LEN(CELL("filename", A1)) - SEARCH("]", CELL("filename", A1))) -> INGESTriskmgt (2012) - PREPA - Matrix calculus and Monte carlo > Examples2
D3: S(0) | E3: 100 | F3: Strike (K)
D4: Random normally dist. | E4: Random prices | F4: 120
D5: exp(r )-1 | E5: in one-year from now
A6: =COUNTA(D6:D2001) -> 1996 | D6: 0.3694992677 | E6: =$E$3*(1+D6) -> 136.9499268 | F6: =MIN(MAX(E6-$F$4,0),30) -> 16.94992677 | G6: Average | H6: =AVERAGE(F6:F2001) -> 3.455354894
D7: 0.5154893856 | E7: =$E$3*(1+D7) -> 151.5489386 | F7: =MIN(MAX(E7-$F$4,0),30) -> 30 | G7: PV | H7: =H6/(1+5.56%) -> 3.273356284
D8: -0.07333008089 | E8: 92.66699191 | F8: 0 | G8: B&Sch | H8: =call_bs(E3,F4,21.69%,5.56%,0,1) -> 3.986126345
D9: -0.1313634308 | E9: 86.86365692 | F9: 0 | H9: (I assumed that 5.56% was
D10: -0.07815012985 | E10: 92.18498702 | F10: 0 | H10: the risk-free rate…)
D11: 0.06684350657 | E11: 106.6843507 | F11: 0
D12: 0.6856103476 | E12: 168.5610348 | F12: 30
D13: -0.1123820583 | E13: 88.76179417 | F13: 0
D14: -0.1126112638 | E14: 88.73887362 | F14: 0
D15: -0.1224309386 | E15: 87.75690614 | F15: 0
D16: -0.06480940887 | E16: 93.51905911 | F16: 0
D17: -0.2991397845 | E17: 70.08602155 | F17: 0
D18: -0.3593521632 | E18: 64.06478368 | F18: 0
D19: 0.8000755924 | E19: 180.0075592 | F19: 30
D20: -0.1526765287 | E20: 84.73234713 | F20: 0
D21: 0.2021532722 | E21: 120.2153272 | F21: 0.2153272228
D22: 0.1752972202 | E22: 117.529722 | F22: 0
D23: -0.1109257161 | E23: 88.90742839 | F23: 0
D24: 0.2492661308 | E24: 124.9266131 | F24: 4.926613084
D25: 0.1382894095 | E25: 113.828941 | F25: 0
D26: -0.009486992298 | E26: 99.05130077 | F26: 0
D27: 0.1242962789 | E27: 112.4296279 | F27: 0
D28: 0.7131924146 | E28: 171.3192415 | F28: 30
D29: -0.009521581732 | E29: 99.04784183 | F29: 0
D30: 0.7246201445 | E30: 172.4620145 | F30: 30
D31: -0.09584325227 | E31: 90.41567477 | F31: 0
D32: 0.2024427847 | E32: 120.2442785 | F32: 0.2442784706
D33: 0.07351017007 | E33: 107.351017 | F33: 0
D34: 0.223588449 | E34: 122.3588449 | F34: 2.358844895
D35: -0.1732676612 | E35: 82.67323388 | F35: 0
D36: 0.4057599932 | E36: 140.5759993 | F36: 20.57599932
D37: -0.1879263723 | E37: 81.20736277 | F37: 0
D38: -0.2329448219 | E38: 76.70551781 | F38: 0
D39: 0.4717585543 | E39: 147.1758554 | F39: 27.17585543
D40: 0.1131873943 | E40: 111.3187394 | F40: 0
D41: 0.07855319691 | E41: 107.8553197 | F41: 0
D42: -0.246472034 | E42: 75.3527966 | F42: 0
D43: 0.1365375934 | E43: 113.6537593 | F43: 0
D44: 0.04379932981 | E44: 104.379933 | F44: 0
D45: -0.09540485495 | E45: 90.4595145 | F45: 0
D46: 0.1424181383 | E46: 114.2418138 | F46: 0
D47: -0.1294882223 | E47: 87.05117777 | F47: 0
D48: -0.2069805488 | E48: 79.30194512 | F48: 0
D49: -0.02985232957 | E49: 97.01476704 | F49: 0
D50: -0.05777510718 | E50: 94.22248928 | F50: 0
D51: -0.1114530707 | E51: 88.85469293 | F51: 0
D52: 0.2974374109 | E52: 129.7437411 | F52: 9.743741088
D53: 0.1496214632 | E53: 114.9621463 | F53: 0
D54: 0.2795416833 | E54: 127.9541683 | F54: 7.95416833
D55: 0.2898744123 | E55: 128.9874412 | F55: 8.987441231
D56: -0.1519078181 | E56: 84.80921819 | F56: 0
D57: 0.134195473 | E57: 113.4195473 | F57: 0
D58: -0.04895992002 | E58: 95.104008 | F58: 0
D59: 0.1977021311 | E59: 119.7702131 | F59: 0
D60: -0.1411368701 | E60: 85.88631299 | F60: 0
D61: -0.1584258927 | E61: 84.15741073 | F61: 0
D62: 0.4316810106 | E62: 143.1681011 | F62: 23.16810106
D63: 0.2265972745 | E63: 122.6597275 | F63: 2.659727455
D64: 0.2115619031 | E64: 121.1561903 | F64: 1.156190309
D65: 0.05484615511 | E65: 105.4846155 | F65: 0
D66: -0.02489195914 | E66: 97.51080409 | F66: 0
D67: 0.1612280032 | E67: 116.1228003 | F67: 0
D68: -0.003234208087 | E68: 99.67657919 | F68: 0
D69: -0.1078348811 | E69: 89.21651189 | F69: 0
D70: -0.2239168029 | E70: 77.60831971 | F70: 0
D71: -0.1290014348 | E71: =$E$3*(1+D71) -> 87.09985652 | F71: =MIN(MAX(E71-$F$4,0),30) -> 0
D72: -0.07240224501 | E72: 92.7597755 | F72: 0
D73: -0.2764570245 | E73: 72.35429755 | F73: 0
D74: 0.03638669712 | E74: 103.6386697 | F74: 0
D75: 0.3657210326 | E75: 136.5721033 | F75: 16.57210326
D76: 0.003271296489 | E76: 100.3271296 | F76: 0
D77: 0.1368538829 | E77: 113.6853883 | F77: 0
D78: -0.2652228575 | E78: 73.47771425 | F78: 0
D79: -0.03151376753 | E79: 96.84862325 | F79: 0
D80: 0.4318566688 | E80: 143.1856669 | F80: 23.18566688
D81: -0.155769416 | E81: 84.4230584 | F81: 0
D82: 0.6177010122 | E82: 161.7701012 | F82: 30
D83: 0.09528533126 | E83: 109.5285331 | F83: 0
D84: 0.09777881438 | E84: 109.7778814 | F84: 0
D85: 0.04628426632 | E85: 104.6284266 | F85: 0
D86: 0.05031544759 | E86: 105.0315448 | F86: 0
D87: 0.02771563093 | E87: 102.7715631 | F87: 0
D88: 0.1565011639 | E88: 115.6501164 | F88: 0
D89: -0.3842039489 | E89: 61.57960511 | F89: 0
D90: -0.2747059673 | E90: 72.52940327 | F90: 0
D91: -0.2738933919 | E91: 72.61066081 | F91: 0
D92: 0.1484475854 | E92: 114.8447585 | F92: 0
D93: 0.3188285442 | E93: 131.8828544 | F93: 11.88285442
D94: 0.1104518062 | E94: 111.0451806 | F94: 0
D95: -0.0264512432 | E95: 97.35487568 | F95: 0
D96: 0.01470694302 | E96: 101.4706943 | F96: 0
D97: 0.09959068998 | E97: 109.959069 | F97: 0
D98: 0.2730207029 | E98: 127.3020703 | F98: 7.302070287
D99: -0.0147595274 | E99: 98.52404726 | F99: 0
D100: -0.1363671108 | E100: 86.36328892 | F100: 0
D101: 0.06954912084 | E101: 106.9549121 | F101: 0
D102: 0.07662261423 | E102: 107.6622614 | F102: 0
D103: -0.1173695819 | E103: 88.26304181 | F103: 0
D104: -0.061441968 | E104: 93.8558032 | F104: 0
D105: -0.007144300676 | E105: 99.28556993 | F105: 0
D106: 0.254014888 | E106: 125.4014888 | F106: 5.401488801
D107: -0.08260531055 | E107: 91.73946894 | F107: 0
D108: -0.1411434168 | E108: 85.88565832 | F108: 0
D109: 0.1652768072 | E109: 116.5276807 | F109: 0
D110: -0.05328794594 | E110: 94.67120541 | F110: 0
D111: 0.1945516689 | E111: 119.4551669 | F111: 0
D112: -0.05329236437 | E112: 94.67076356 | F112: 0
D113: 0.03608629264 | E113: 103.6086293 | F113: 0
D114: 0.1501227478 | E114: 115.0122748 | F114: 0
D115: -0.08814463158 | E115: 91.18553684 | F115: 0
D116: 0.1266886044 | E116: 112.6688604 | F116: 0
D117: -0.1279924806 | E117: 87.20075194 | F117: 0
D118: 0.03547759528 | E118: 103.5477595 | F118: 0
D119: -0.1527214833 | E119: 84.72785167 | F119: 0
D120: 0.1863073644 | E120: 118.6307364 | F120: 0
D121: 0.05281003832 | E121: 105.2810038 | F121: 0
D122: 0.2493735041 | E122: 124.9373504 | F122: 4.937350414
D123: -0.15703972 | E123: 84.296028 | F123: 0
D124: 0.1288142744 | E124: 112.8814274 | F124: 0
D125: 0.2295843026 | E125: 122.9584303 | F125: 2.958430257
D126: 0.5335657784 | E126: 153.3565778 | F126: 30
D127: 0.6291400265 | E127: 162.9140027 | F127: 30
D128: 0.3088436916 | E128: 130.8843692 | F128: 10.88436916
D129: 0.004200477599 | E129: 100.4200478 | F129: 0
D130: -0.01157864638 | E130: 98.84213536 | F130: 0
D131: -0.06982387891 | E131: 93.01761211 | F131: 0
D132: 0.02786792553 | E132: 102.7867926 | F132: 0
D133: -0.08623818557 | E133: 91.37618144 | F133: 0
D134: 0.3511959587 | E134: 135.1195959 | F134: 15.11959587
D135: 0.03496272859 | E135: =$E$3*(1+D135) -> 103.4962729 | F135: =MIN(MAX(E135-$F$4,0),30) -> 0
D136: 0.5478302493 | E136: 154.7830249 | F136: 30
D137: -0.1175415873 | E137: 88.24584127 | F137: 0
D138: 0.2004981198 | E138: 120.049812 | F138: 0.04981198137
D139: -0.04554760084 | E139: 95.44523992 | F139: 0
D140: 0.2745556833 | E140: 127.4555683 | F140: 7.455568329
D141: -0.1450073783 | E141: 85.49926217 | F141: 0
D142: 0.09475624266 | E142: 109.4756243 | F142: 0
D143: 0.3010352359 | E143: 130.1035236 | F143: 10.10352359
D144: 0.02675483906 | E144: 102.6754839 | F144: 0
D145: 0.1958886408 | E145: 119.5888641 | F145: 0
D146: -0.168900611 | E146: 83.1099389 | F146: 0
D147: 0.07261117423 | E147: 107.2611174 | F147: 0
D148: -0.04065788936 | E148: 95.93421106 | F148: 0
D149: 0.2715576625 | E149: 127.1557663 | F149: 7.155766252
D150: 0.007438307303 | E150: 100.7438307 | F150: 0
D151: -0.0756725532 | E151: 92.43274468 | F151: 0
D152: -0.1008076111 | E152: 89.91923889 | F152: 0
D153: -0.1644020376 | E153: 83.55979624 | F153: 0
D154: -0.1554606537 | E154: 84.45393463 | F154: 0
D155: 0.0518055054 | E155: 105.1805505 | F155: 0
D156: -0.09970401494 | E156: 90.02959851 | F156: 0
D157: -0.04141631758 | E157: 95.85836824 | F157: 0
D158: 0.1961804669 | E158: 119.6180467 | F158: 0
D159: -0.03050143549 | E159: 96.94985645 | F159: 0
D160: 0.1249791154 | E160: 112.4979115 | F160: 0
D161: -0.1565366904 | E161: 84.34633096 | F161: 0
D162: -0.2546249607 | E162: 74.53750393 | F162: 0
D163: 0.01489484208 | E163: 101.4894842 | F163: 0
D164: -0.05652211554 | E164: 94.34778845 | F164: 0
D165: 0.00630477518 | E165: 100.6304775 | F165: 0
D166: 0.7131895795 | E166: 171.3189579 | F166: 30
D167: -0.2709867525 | E167: 72.90132475 | F167: 0
D168: 0.1135716542 | E168: 111.3571654 | F168: 0
D169: -0.3550504567 | E169: 64.49495433 | F169: 0
D170: -0.2351609777 | E170: 76.48390223 | F170: 0
D171: -0.1205663545 | E171: 87.94336455 | F171: 0
D172: -0.1256018604 | E172: 87.43981396 | F172: 0
D173: -0.1627885194 | E173: 83.72114806 | F173: 0
D174: 0.03501268101 | E174: 103.5012681 | F174: 0
D175: 0.03865816462 | E175: 103.8658165 | F175: 0
D176: -0.1578753754 | E176: 84.21246246 | F176: 0
D177: 0.2349478415 | E177: 123.4947841 | F177: 3.494784149
D178: -0.1130808468 | E178: 88.69191532 | F178: 0
D179: 0.3743447472 | E179: 137.4344747 | F179: 17.43447472
D180: 0.07533492194 | E180: 107.5334922 | F180: 0
D181: -0.1434529408 | E181: 85.65470592 | F181: 0
D182: 0.03991026364 | E182: 103.9910264 | F182: 0
D183: 0.146285142 | E183: 114.6285142 | F183: 0
D184: -0.2376330877 | E184: 76.23669123 | F184: 0
D185: 0.08186982659 | E185: 108.1869827 | F185: 0
D186: -0.08562280908 | E186: 91.43771909 | F186: 0
D187: 0.1258410453 | E187: 112.5841045 | F187: 0
D188: -0.1272744855 | E188: 87.27255145 | F188: 0
D189: 0.4495483831 | E189: 144.9548383 | F189: 24.95483831
D190: 0.1665601101 | E190: 116.656011 | F190: 0
D191: 0.1053869257 | E191: 110.5386926 | F191: 0
D192: -0.04410588906 | E192: 95.58941109 | F192: 0
D193: -0.1520229643 | E193: 84.79770357 | F193: 0
D194: -0.3658322393 | E194: 63.41677607 | F194: 0
D195: 0.1325899529 | E195: 113.2589953 | F195: 0
D196: 0.4233541798 | E196: 142.335418 | F196: 22.33541798
D197: -0.07439346317 | E197: 92.56065368 | F197: 0
D198: 0.08997731236 | E198: 108.9977312 | F198: 0
D199: 0.01293472054 | E199: =$E$3*(1+D199) -> 101.2934721 | F199: =MIN(MAX(E199-$F$4,0),30) -> 0
D200: 0.04325798696 | E200: 104.3257987 | F200: 0
D201: 0.3625762987 | E201: 136.2576299 | F201: 16.25762987
... 1800 more rows

Sheet Example - cumulative
A1: =MID(CELL("filename",A1),SEARCH("[",CELL("filename",A1))+1,SEARCH(".",CELL("filename",A1))-SEARCH("[",CELL("filename",A1))-1) &" > "&RIGHT(CELL("filename", A1), LEN(CELL("filename", A1)) - SEARCH("]", CELL("filename", A1))) -> INGESTriskmgt (2012) - PREPA - Matrix calculus and Monte carlo > Example - cumulative
C3: mu | D3: 0.05 | E3: (continuous)
C4: sigma | D4: 0.2 | E4: (continuous)
D5: Generate random returns | E5: Prices
E6: 100
C7: 1 | D7: =$D$3*1/12+$D$4*SQRT(1/12)*NORMSINV(RAND()) -> 0.002366859206 | E7: =E6*(1+D7) -> 100.2366859
C8: 2 | D8: =$D$3*1/12+$D$4*SQRT(1/12)*NORMSINV(RAND()) -> -0.008323935514 | E8: =E7*(1+D8) -> 99.40232221
C9: 3 | D9: -0.01545099943 | E9: 97.86645699
C10: 4 | D10: -0.01083925181 | E10: 96.80565782
C11: 5 | D11: 0.08107881276 | E11: 104.6545456
C12: 6 | D12: 0.002069932764 | E12: 104.8711735
C13: 7 | D13: 0.0222237537 | E13: 107.2018046
C14: 8 | D14: 0.06347733779 | E14: 114.0066898
C15: 9 | D15: 0.01875323544 | E15: 116.1446841
C16: 10 | D16: -0.00382753597 | E16: 115.7001361
C17: 11 | D17: -0.07993604364 | E17: 106.451525
C18: 12 | D18: 0.1061218111 | E18: 117.7483536
C19: 13 | D19: 0.03049667295 | E19: 121.3392866
C20: 14 | D20: 0.01375884542 | E20: 123.0087751
C21: 15 | D21: -0.01284021485 | E21: 121.429316
C22: 16 | D22: 0.02076890217 | E22: 123.9512696
C23: 17 | D23: 0.01002270077 | E23: 125.1935961
C24: 18 | D24: 0.06295903628 | E24: 133.0756643
C25: 19 | D25: -0.02033567748 | E25: 130.3694805
C26: 20 | D26: 0.06297874683 | E26: 138.579987
C27: 21 | D27: 0.03763183334 | E27: 143.795006
C28: 22 | D28: 0.09732209515 | E28: 157.7894372
C29: 23 | D29: 0.01744811981 | E29: 160.5425662
C30: 24 | D30: -0.006458866823 | E30: 159.5056432
C31: 25 | D31: 0.05154506294 | E31: 167.7273716
C32: 26 | D32: -0.01630788717 | E32: 164.9920925
C33: 27 | D33: -0.0722034191 | E33: 153.0790993
C34: 28 | D34: -0.05178259399 | E34: 145.1522665
C35: 29 | D35: 0.001179360134 | E35: 145.3234533
C36: 30 | D36: 0.01235112304 | E36: 147.1183611
C37: 31 | D37: 0.01901263934 | E37: 149.9154695
C38: 32 | D38: 0.05994939426 | E38: 158.902811
C39: 33 | D39: 0.0611144752 | E39: 168.6140729
C40: 34 | D40: 0.1028350935 | E40: 185.9535169
C41: 35 | D41: 0.04619895357 | E41: 194.5443748
C42: 36 | D42: 0.03613062573 | E42: 201.5733848
C43: 37 | D43: -0.006923168251 | E43: 200.1778583
C44: 38 | D44: 0.03416672223 | E44: 207.0172796
C45: 39 | D45: 0.05988103323 | E45: 219.4136882
C46: 40 | D46: -0.04080391853 | E46: 210.46075
C47: 41 | D47: 0.03596767978 | E47: 218.0305348
C48: 42 | D48: 0.08177243369 | E48: 235.8594223
C49: 43 | D49: -0.008827839722 | E49: 233.7772931
C50: 44 | D50: -0.02250968372 | E50: 228.5150402
C51: 45 | D51: 0.02959935092 | E51: 235.278937
C52: 46 | D52: -0.04133263007 | E52: 225.5542398
C53: 47 | D53: 0.01736121872 | E53: 229.4701363
C54: 48 | D54: 0.03287717994 | E54: 237.0144672
C55: 49 | D55: 0.09597111527 | E55: 259.76101
C56: 50 | D56: -0.03053803474 | E56: 251.8284192
C57: 51 | D57: 0.020760075 | E57: 257.0563961
C58: 52 | D58: 0.05585275263 | E58: 271.4137034
C59: 53 | D59: 0.07892317716 | E59: 292.8345352
C60: 54 | D60: -0.02552544948 | E60: 285.3598021
C61: 55 | D61: -0.03876796185 | E61: 274.2969841
C62: 56 | D62: 0.02466425239 | E62: 281.0623142
C63: 57 | D63: -0.08197246033 | E63: 258.0229448
C64: 58 | D64: -0.02886203065 | E64: 250.5758787
C65: 59 | D65: -0.04767079067 | E65: 238.6307284
C66: 60 | D66: 0.08821262284 | E66: 259.6809708
C67: 61 | D67: -0.03521888819 | E67: 250.5352958
C68: 62 | D68: 0.01588131077 | E68: 254.5141246
C69: 63 | D69: -0.06131370334 | E69: 238.9089211
C70: 64 | D70: -0.048732312 | E70: 227.266337
C71: 65 | D71: 0.04991495437 | E71: 238.6103259
C72: 66 | D72: =$D$3*1/12+$D$4*SQRT(1/12)*NORMSINV(RAND()) -> 0.08320454656 | E72: =E71*(1+D72) -> 258.4637898
C73: 67 | D73: 0.009949449774 | E73: 261.0353623
C74: 68 | D74: -0.01228773923 | E74: 257.8278279
C75: 69 | D75: -0.1519006253 | E75: 218.6636196
C76: 70 | D76: 0.03612231618 | E76: 226.562256
C77: 71 | D77: -0.01549427109 | E77: 223.051839
C78: 72 | D78: -0.00143497956 | E78: 222.7317642
C79: 73 | D79: -0.01424651178 | E79: 219.5586135
C80: 74 | D80: 0.02515125117 | E80: 225.0807873
C81: 75 | D81: 0.01706510635 | E81: 228.9218149
C82: 76 | D82: 0.05133037526 | E82: 240.6724575
C83: 77 | D83: 0.06408707737 | E83: 256.0964519
C84: 78 | D84: -0.01448828755 | E84: 252.3860529
C85: 79 | D85: -0.0440706889 | E85: 241.2632257
C86: 80 | D86: 0.07872558828 | E86: 260.2568151
C87: 81 | D87: -0.01202040758 | E87: 257.1284221
C88: 82 | D88: 0.1072322693 | E88: 284.7008862
C89: 83 | D89: 0.04297005519 | E89: 296.934499
C90: 84 | D90: 0.02083031986 | E90: 303.1197396
C91: 85 | D91: -0.05383050281 | E91: 286.8026516
C92: 86 | D92: 0.0102857453 | E92: 289.7526307
C93: 87 | D93: -0.01742830696 | E93: 284.7027329
C94: 88 | D94: 0.04355020983 | E94: 297.1015966
C95: 89 | D95: -0.002299066307 | E95: 296.4185404
C96: 90 | D96: 0.1184544458 | E96: 331.5306343
C97: 91 | D97: 0.05995771632 | E97: 351.408454
C98: 92 | D98: -0.0003722761911 | E98: 351.277633
C99: 93 | D99: 0.09119295086 | E99: 383.3116769
C100: 94 | D100: -0.02154546839 | E100: 375.0530473
C101: 95 | D101: 0.05809774492 | E101: 396.8427836
C102: 96 | D102: 0.006940127396 | E102: 399.5969231
C103: 97 | D103: 0.001010952258 | E103: 400.0008965
C104: 98 | D104: 0.1318188516 | E104: 452.7285553
C105: 99 | D105: -0.04342492919 | E105: 433.0688498
C106: 100 | D106: 0.04629946543 | E106: 453.119706
C107: 101 | D107: 0.0325397164 | E107: 467.8640928
C108: 102 | D108: -0.02375367648 | E108: 456.7506005
C109: 103 | D109: 0.009075267394 | E109: 460.8957343
C110: 104 | D110: 0.03802436155 | E110: 478.4210004
C111: 105 | D111: 0.02669677102 | E111: 491.1932963
C112: 106 | D112: -0.05204873245 | E112: 465.6273078
C113: 107 | D113: 0.03662032995 | E113: 482.6787334
C114: 108 | D114: 0.05841362938 | E114: 510.8737501
C115: 109 | D115: -0.0701937258 | E115: 475.0136182
C116: 110 | D116: 0.04814668524 | E116: 497.8839493
C117: 111 | D117: -0.04097648573 | E117: 477.4824148
C118: 112 | D118: -0.06916840727 | E118: 444.4557166
C119: 113 | D119: 0.04027244608 | E119: 462.3550355
C120: 114 | D120: -0.02263357884 | E120: 451.8902864
C121: 115 | D121: 0.05154009174 | E121: 475.1807532
C122: 116 | D122: -0.007939986889 | E122: 471.4078242
C123: 117 | D123: -0.05309014513 | E123: 446.3807144
C124: 118 | D124: -0.06401998877 | E124: 417.8034261
C125: 119 | D125: 0.1018332854 | E125: 460.3497217
C126: 120 | D126: 0.0490962754 | E126: 482.9511784
C127: 121 | D127: 0.006264453765 | E127: 485.9766037
C128: 122 | D128: 0.02184124299 | E128: 496.5909368
C129: 123 | D129: 0.01386393789 | E129: 503.4756427
C130: 124 | D130: 0.02362288078 | E130: 515.3691878
C131: 125 | D131: -0.07210169843 | E131: 478.210194
C132: 126 | D132: 0.1230441968 | E132: 537.0511832
C133: 127 | D133: 0.0608932303 | E133: 569.7539646
C134: 128 | D134: -0.01995696227 | E134: 558.3834063
C135: 129 | D135: -0.007676625501 | E135: 554.096906
C136: 130 | D136: =$D$3*1/12+$D$4*SQRT(1/12)*NORMSINV(RAND()) -> 0.03846561948 | E136: =E135*(1+D136) -> 575.4105867
C137: 131 | D137: -0.01394403965 | E137: 567.3870387
C138: 132 | D138: 0.006749705979 | E138: 571.2167343
C139: 133 | D139: 0.02659482244 | E139: 586.408142
C140: 134 | D140: -0.06074669616 | E140: 550.7857847
C141: 135 | D141: 0.001816487503 | E141: 551.7862802
C142: 136 | D142: 0.08885172372 | E142: 600.8134424
C143: 137 | D143: 0.0309582073 | E143: 619.4135495
C144: 138 | D144: 0.05809154769 | E144: 655.3962412
C145: 139 | D145: 0.06404752456 | E145: 697.3727481
C146: 140 | D146: -0.03645535737 | E146: 671.9497753
C147: 141 | D147: 0.01212409671 | E147: 680.0965594
C148: 142 | D148: 0.0345835883 | E148: 703.6167388
C149: 143 | D149: 0.03403927887 | E149: 727.5673452
C150: 144 | D150: -0.05406903906 | E150: 688.228478
C151: 145 | D151: 0.08375761635 | E151: 745.8728548
C152: 146 | D152: 0.08529056903 | E152: 809.488775
C153: 147 | D153: 0.102202278 | E153: 892.2203718
C154: 148 | D154: 0.003483499866 | E154: 895.3284214
C155: 149 | D155: -0.09050788335 | E155: 814.294141
C156: 150 | D156: -0.002232555889 | E156: 812.4761839
C157: 151 | D157: 0.03703344642 | E157: 842.5649771
C158: 152 | D158: 0.05126056764 | E158: 885.7553361
C159: 153 | D159: -0.01684739704 | E159: 870.8326643
C160: 154 | D160: 0.02355691003 | E160: 891.346791
C161: 155 | D161: 0.01435126172 | E161: 904.1387421
C162: 156 | D162: -0.03228103833 | E162: 874.9522047
C163: 157 | D163: 0.1069184473 | E163: 968.5007359
C164: 158 | D164: -0.154784769 | E164: 818.5915732
C165: 159 | D165: -0.02468446904 | E165: 798.3850749
C166: 160 | D166: -0.0001737814043 | E166: 798.2463304
C167: 161 | D167: -0.04814165033 | E167: 759.8174347
C168: 162 | D168: 0.03154760693 | E168: 783.7878564
C169: 163 | D169: -0.05819821065 | E169: 738.1728057
C170: 164 | D170: 0.07347496993 | E170: 792.4100304
C171: 165 | D171: 0.02064095181 | E171: 808.7661276
C172: 166 | D172: 0.06055971437 | E172: 857.7447733
C173: 167 | D173: -0.1302013004 | E173: 746.0652884
C174: 168 | D174: 0.1056566381 | E174: 824.8920386
C175: 169 | D175: -0.02019061042 | E175: 808.2369648
C176: 170 | D176: -0.004647006559 | E176: 804.4810823
C177: 171 | D177: 0.07663631085 | E177: 866.1335446
C178: 172 | D178: 0.06185631065 | E178: 919.7093702
C179: 173 | D179: 0.0603502695 | E179: 975.2140786
C180: 174 | D180: -0.04035955825 | E180: 935.8548692
C181: 175 | D181: -2.583322495e-05 | E181: 935.830693
C182: 176 | D182: 0.09581127844 | E182: 1025.493828
C183: 177 | D183: 0.09497230171 | E183: 1122.887337
C184: 178 | D184: 0.005106945635 | E184: 1128.621862
C185: 179 | D185: 0.06196443618 | E185: 1198.556279
C186: 180 | D186: -0.08817164426 | E186: 1092.877601
C187: 181 | D187: -0.1263400233 | E187: 954.8034198
C188: 182 | D188: -0.05407043121 | E188: 903.1767872
C189: 183 | D189: -0.03224654546 | E189: 874.0524559
C190: 184 | D190: -0.05729785362 | E190: 823.9711262
C191: 185 | D191: -0.03452409077 | E191: 795.5242722
C192: 186 | D192: -0.07947389618 | E192: 732.3008588
C193: 187 | D193: -0.05420454752 | E193: 692.6068221
C194: 188 | D194: -0.145501733 | E194: 591.8313292
C195: 189 | D195: 0.0298062024 | E195: 609.4715736
C196: 190 | D196: -0.05348259726 | E196: 576.8754509
C197: 191 | D197: -0.01671743084 | E197: 567.2315754
C198: 192 | D198: 0.01812595778 | E198: 577.513191
C199: 193 | D199: -0.006134548663 | E199: 573.9704082
C200: 194 | D200: =$D$3*1/12+$D$4*SQRT(1/12)*NORMSINV(RAND()) -> 0.05087144894 | E200: =E199*(1+D200) -> 603.1691146
C201: 195 | D201: 0.1476837446 | E201: 692.247388
... 5 more rows

Sheet Example - correlated randoms
A1: =MID(CELL("filename",A1),SEARCH("[",CELL("filename",A1))+1,SEARCH(".",CELL("filename",A1))-SEARCH("[",CELL("filename",A1))-1) &" > "&RIGHT(CELL("filename", A1), LEN(CELL("filename", A1)) - SEARCH("]", CELL("filename", A1))) -> INGESTriskmgt (2012) - PREPA - Matrix calculus and Monte carlo > Example - correlated randoms
E2: sigma | F2: =STDEV(F6:F205) -> 1.036677444 | G2: =STDEV(G6:G205) -> 1.067608855
E3: correlation | G3: =CORREL(F6:F205,G6:G205) -> 0.4157579203
F4: Correlation | G4: 0.4
D5: Zx | E5: Zy | F5: Wx | G5: Wy
C6: 1 | D6: =NORMSINV(RAND()) -> -0.05858397012 | E6: =NORMSINV(RAND()) -> 1.492285035 | F6: =D6 -> -0.05858397012 | G6: =$G$4*D6+(1-$G$4^2)^0.5*E6 -> 1.344268238
C7: 2 | D7: =NORMSINV(RAND()) -> 1.397581018 | E7: 0.5530567411 | F7: =D7 -> 1.397581018 | G7: =$G$4*D7+(1-$G$4^2)^0.5*E7 -> 1.065917283
C8: 3 | D8: -0.51194367 | E8: -0.5056038204 | F8: -0.51194367 | G8: -0.6681710237
C9: 4 | D9: 1.532090095 | E9: -0.6852480472 | F9: 1.532090095 | G9: -0.0152041711
C10: 5 | D10: 0.2547174487 | E10: -1.489500268 | F10: 0.2547174487 | G10: -1.263262566
C11: 6 | D11: 0.6097428329 | E11: -0.2247623894 | F11: 0.6097428329 | G11: 0.03789900055
C12: 7 | D12: 0.8314331 | E12: 0.8120696434 | F12: 0.8314331 | G12: 1.076847362
C13: 8 | D13: 0.4974277952 | E13: -0.6880540566 | F13: 0.4974277952 | G13: -0.4316408413
C14: 9 | D14: 0.8306756133 | E14: 1.162739817 | F14: 0.8306756133 | G14: 1.397938891
C15: 10 | D15: 0.8644016253 | E15: 0.06694069306 | F15: 0.8644016253 | G15: 0.4071128087
C16: 11 | D16: -0.8796052801 | E16: 0.0943191181 | F16: -0.8796052801 | G16: -0.2653972124
C17: 12 | D17: -0.06907468666 | E17: -0.7356343485 | F17: -0.06907468666 | G17: -0.7018498918
C18: 13 | D18: -1.393099913 | E18: 0.6348532961 | F18: -1.393099913 | G18: 0.02461269161
C19: 14 | D19: -0.6457333577 | E19: -0.385920121 | F19: -0.6457333577 | G19: -0.6119949764
C20: 15 | D20: 0.2902621846 | E20: 0.8945555032 | F20: 0.2902621846 | G20: 0.9359785351
C21: 16 | D21: 1.037204196 | E21: -0.6625342999 | F21: 1.037204196 | G21: -0.1923410374
C22: 17 | D22: 1.260546293 | E22: 0.2495980583 | F22: 1.260546293 | G22: 0.7329789164
C23: 18 | D23: 0.7973823057 | E23: 0.2654774312 | F23: 0.7973823057 | G23: 0.562267007
C24: 19 | D24: -0.3481678724 | E24: 1.000294613 | F24: -0.3481678724 | G24: 0.7775180074
C25: 20 | D25: 0.5648122174 | E25: -1.100567495 | F25: 0.5648122174 | G25: -0.782761884
C26: 21 | D26: -0.3054558351 | E26: 0.2573198086 | F26: -0.3054558351 | G26: 0.1136551662
C27: 22 | D27: 0.595157822 | E27: -0.6995177075 | F27: 0.595157822 | G27: -0.4030554401
C28: 23 | D28: -1.896855294 | E28: 0.437159195 | F28: -1.896855294 | G28: -0.3580790972
C29: 24 | D29: 1.101148651 | E29: -0.1331402729 | F29: 1.101148651 | G29: 0.3184343847
C30: 25 | D30: -0.3624037029 | E30: -0.3717203223 | F30: -0.3624037029 | G30: -0.485648784
C31: 26 | D31: -1.00673191 | E31: 0.8544135311 | F31: -1.00673191 | G31: 0.380390172
C32: 27 | D32: 0.08446083102 | E32: 0.3160343699 | F32: 0.08446083102 | G32: 0.3234346169
C33: 28 | D33: 0.1220874424 | E33: -0.9293389019 | F33: 0.1220874424 | G33: -0.8029181959
C34: 29 | D34: -0.2142435093 | E34: 0.4910188279 | F34: -0.2142435093 | G34: 0.3643287856
C35: 30 | D35: 1.402913541 | E35: -0.724427491 | F35: 1.402913541 | G35: -0.102783346
C36: 31 | D36: -0.2864978714 | E36: -0.4028264801 | F36: -0.2864978714 | G36: -0.4837957159
C37: 32 | D37: -0.5249532772 | E37: -1.63119795 | F37: -0.5249532772 | G37: -1.704998926
C38: 33 | D38: -0.7792718748 | E38: -0.01160752801 | F38: -0.7792718748 | G38: -0.3223472251
C39: 34 | D39: =NORMSINV(RAND()) -> 1.597994443 | E39: 1.562919806 | F39: 1.597994443 | G39: 2.07163744
C40: 35 | D40: 0.69401953 | E40: 2.01105392 | F40: 0.69401953 | G40: 2.120769175
C41: 36 | D41: -0.2358779355 | E41: 1.451116331 | F41: -0.2358779355 | G41: 1.235618912
C42: 37 | D42: -1.073855651 | E42: 1.163824827 | F42: -1.073855651 | G42: 0.6371208129
C43: 38 | D43: 0.453467664 | E43: -1.312305926 | F43: 0.453467664 | G43: -1.021361182
C44: 39 | D44: 0.1541195745 | E44: 1.523078337 | F44: 0.1541195745 | G44: 1.457572184
C45: 40 | D45: 1.28009196 | E45: -0.5237621338 | F45: 1.28009196 | G45: 0.03200085918
C46: 41 | D46: 2.030032502 | E46: -1.057349642 | F46: 2.030032502 | G46: -0.1570639538
C47: 42 | D47: 0.2720124983 | E47: 1.460862599 | F47: 0.2720124983 | G47: 1.447707687
C48: 43 | D48: -0.8076453453 | E48: -0.8768037709 | F48: -0.8076453453 | G48: -1.126662068
C49: 44 | D49: -1.032228071 | E49: -2.165146337 | F49: -1.032228071 | G49: -2.397280624
C50: 45 | D50: 0.6795556351 | E50: -0.8428471898 | F50: 0.6795556351 | G50: -0.5006599552
C51: 46 | D51: 0.645124719 | E51: -1.19617501 | F51: 0.645124719 | G51: -0.8382626176
C52: 47 | D52: -0.5844455001 | E52: 2.08230304 | F52: -0.5844455001 | G52: 1.67468406
C53: 48 | D53: -1.755812398 | E53: -0.4332959852 | F53: -1.755812398 | G53: -1.099447289
C54: 49 | D54: -0.5471421279 | E54: 1.673796601 | F54: -0.5471421279 | G54: 1.315203073
C55: 50 | D55: -1.391517591 | E55: -0.736730082 | F55: -1.391517591 | G55: -1.23183131
C56: 51 | D56: -1.378116232 | E56: 0.1992451226 | F56: -1.378116232 | G56: -0.3686353214
C57: 52 | D57: 2.445380454 | E57: 1.092520513 | F57: 2.445380454 | G57: 1.979463771
C58: 53 | D58: -0.9998491648 | E58: -1.675197526 | F58: -0.9998491648 | G58: -1.935283559
C59: 54 | D59: -0.3843308915 | E59: -0.8700568036 | F59: -0.3843308915 | G59: -0.9511525888
C60: 55 | D60: -0.7908735124 | E60: 1.124682721 | F60: -0.7908735124 | G60: 0.7144393358
C61: 56 | D61: 0.9596045417 | E61: -0.8709614703 | F61: 0.9596045417 | G61: -0.4144075563
C62: 57 | D62: -2.116228458 | E62: 0.09793952656 | F62: -2.116228458 | G62: -0.7567283245
C63: 58 | D63: 0.2754235759 | E63: 0.4312221549 | F63: 0.2754235759 | G63: 0.5053910636
C64: 59 | D64: 0.5002866048 | E64: 0.7921406253 | F64: 0.5002866048 | G64: 0.9261235172
C65: 60 | D65: -1.674974389 | E65: 0.2659664491 | F65: -1.674974389 | G65: -0.4262274786
C66: 61 | D66: -0.7955951366 | E66: -1.68762097 | F66: -0.7955951366 | G66: -1.864968223
C67: 62 | D67: -1.396228389 | E67: 0.9494582245 | F67: -1.396228389 | G67: 0.3117014812
C68: 63 | D68: -0.7306743223 | E68: -1.263741187 | F68: -0.7306743223 | G68: -1.450507659
C69: 64 | D69: -0.02291752839 | E69: -2.054546707 | F69: -0.02291752839 | G69: -1.892190172
C70: 65 | D70: -0.8160825183 | E70: -1.861623603 | F70: -0.8160825183 | G70: -2.032639223
C71: 66 | D71: =NORMSINV(RAND()) -> -1.976121601 | E71: 0.4947655273 | F71: =D71 -> -1.976121601 | G71: =$G$4*D71+(1-$G$4^2)^0.5*E71 -> -0.3369885444
C72: 67 | D72: 0.4915447718 | E72: -0.6750974954 | F72: 0.4915447718 | G72: -0.4221191661
C73: 68 | D73: -2.235071536 | E73: -0.285804844 | F73: -2.235071536 | G73: -1.155973081
C74: 69 | D74: -1.857259217 | E74: -1.529254422 | F74: -1.857259217 | G74: -2.144488516
C75: 70 | D75: -0.3797079451 | E75: 0.4023275963 | F75: -0.3797079451 | G75: 0.2168561548
C76: 71 | D76: -0.03674409245 | E76: 0.3133403858 | F76: -0.03674409245 | G76: 0.2724835702
C77: 72 | D77: -2.608945174 | E77: 0.5607615915 | F77: -2.608945174 | G77: -0.5296315815
C78: 73 | D78: 0.742799096 | E78: -0.8202927239 | F78: 0.742799096 | G78: -0.4546910615
C79: 74 | D79: -0.5160047968 | E79: -0.5363375949 | F79: -0.5160047968 | G79: -0.6979634441
C80: 75 | D80: -0.9876476544 | E80: -1.063949246 | F80: -0.9876476544 | G80: -1.370184653
C81: 76 | D81: 1.227389271 | E81: -0.6494211215 | F81: 1.227389271 | G81: -0.1042485813
C82: 77 | D82: 2.054193862 | E82: 0.1022508768 | F82: 2.054193862 | G82: 0.9153920215
C83: 78 | D83: -0.1997580475 | E83: 0.8626324057 | F83: -0.1997580475 | G83: 0.7107124402
C84: 79 | D84: -0.1476509855 | E84: -0.3504184614 | F84: -0.1476509855 | G84: -0.380224219
C85: 80 | D85: -1.924326495 | E85: 0.2027366542 | F85: -1.924326495 | G85: -0.5839193851
C86: 81 | D86: -0.9633842682 | E86: -0.3385788041 | F86: -0.9633842682 | G86: -0.695666307
C87: 82 | D87: -0.7624949306 | E87: -0.9746517987 | F87: -0.7624949306 | G87: -1.198281101
C88: 83 | D88: 0.1169251264 | E88: -0.5869252579 | F88: 0.1169251264 | G88: -0.4911558337
C89: 84 | D89: 0.1832518735 | E89: -0.6278701367 | F89: 0.1832518735 | G89: -0.5021517362
C90: 85 | D90: 0.5682055117 | E90: -0.01169025967 | F90: 0.5682055117 | G90: 0.2165679047
C91: 86 | D91: 0.3402571696 | E91: 0.002651040237 | F91: 0.3402571696 | G91: 0.1385325863
C92: 87 | D92: -0.4087145775 | E92: -0.05914780756 | F92: -0.4087145775 | G92: -0.2176956921
C93: 88 | D93: 0.9017423683 | E93: -1.258879873 | F93: 0.9017423683 | G93: -0.7930855148
C94: 89 | D94: -0.6061831305 | E94: 2.127037309 | F94: -0.6061831305 | G94: 1.706988642
C95: 90 | D95: -1.074299678 | E95: 1.179171278 | F95: -1.074299678 | G95: 0.6510084568
C96: 91 | D96: -0.7856418225 | E96: -0.02348015112 | F96: -0.7856418225 | G96: -0.3357766429
C97: 92 | D97: 0.7455086363 | E97: 1.168262016 | F97: 0.7455086363 | G97: 1.368933279
C98: 93 | D98: -0.7878642158 | E98: -0.7229628052 | F98: -0.7878642158 | G98: -0.9777520422
C99: 94 | D99: 0.3707480334 | E99: 1.375741271 | F99: 0.3707480334 | G99: 1.409186915
C100: 95 | D100: 1.51334312 | E100: -0.116813248 | F100: 1.51334312 | G100: 0.4982761376
C101: 96 | D101: 0.09246762147 | E101: -1.164275649 | F101: 0.09246762147 | G101: -1.030089209
C102: 97 | D102: -0.826431519 | E102: 0.6027485942 | F102: -0.826431519 | G102: 0.221855604
C103: 98 | D103: =NORMSINV(RAND()) -> 1.232380887 | E103: -0.562395285 | F103: 1.232380887 | G103: -0.02249143813
C104: 99 | D104: -0.5985248039 | E104: 0.1914148679 | F104: -0.5985248039 | G104: -0.06397529728
C105: 100 | D105: 0.6135774766 | E105: 1.19991708 | F105: 0.6135774766 | G105: 1.34517316
C106: 101 | D106: -1.090454447 | E106: 0.5808157867 | F106: -1.090454447 | G106: 0.09614468255
C107: 102 | D107: 1.581280862 | E107: 0.3347639599 | F107: 1.581280862 | G107: 0.9393285822
C108: 103 | D108: 0.2927990121 | E108: 1.02503285 | F108: 0.2927990121 | G108: 1.05657773
C109: 104 | D109: -0.2053868708 | E109: -1.642071775 | F109: -0.2053868708 | G109: -1.58713839
C110: 105 | D110: -0.1387231179 | E110: -0.01861552652 | F110: -0.1387231179 | G110: -0.07255065903
C111: 106 | D111: 1.032133339 | E111: 0.8696737066 | F111: 1.032133339 | G111: 1.209922454
C112: 107 | D112: 0.9687527831 | E112: -0.09417205778 | F112: 0.9687527831 | G112: 0.3011909966
C113: 108 | D113: -0.5593486014 | E113: 0.803883973 | F113: -0.5593486014 | G113: 0.5130323907
C114: 109 | D114: 1.323026161 | E114: 0.06619705134 | F114: 1.323026161 | G114: 0.5898810641
C115: 110 | D115: 0.3662160403 | E115: 0.2993271659 | F115: 0.3662160403 | G115: 0.4208242951
C116: 111 | D116: -1.356660676 | E116: 1.463075085 | F116: -1.356660676 | G116: 0.7982661948
C117: 112 | D117: -0.02412298007 | E117: 0.5454774644 | F117: -0.02412298007 | G117: 0.4902891621
C118: 113 | D118: 0.8689495261 | E118: -0.3963031591 | F118: 0.8689495261 | G118: -0.01563803455
C119: 114 | D119: -1.475837255 | E119: 1.141918867 | F119: -1.475837255 | G119: 0.4562510267
C120: 115 | D120: 1.098818725 | E120: -0.07373244899 | F120: 1.098818725 | G120: 0.3719505842
C121: 116 | D121: -1.967156842 | E121: 0.3557355296 | F121: -1.967156842 | G121: -0.4608257384
C122: 117 | D122: 1.44901977 | E122: -0.5734916184 | F122: 1.44901977 | G122: 0.05399415773
C123: 118 | D123: 0.4000044129 | E123: -0.6426144599 | F123: 0.4000044129 | G123: -0.4289641158
C124: 119 | D124: 0.422007817 | E124: 1.439094843 | F124: 0.422007817 | G124: 1.487755337
C125: 120 | D125: 1.6440487 | E125: -0.5179624186 | F125: 1.6440487 | G125: 0.1828990818
C126: 121 | D126: -1.134374964 | E126: -0.8154112427 | F126: -1.134374964 | G126: -1.201086734
C127: 122 | D127: -0.3735823892 | E127: -0.912959528 | F127: -0.3735823892 | G127: -0.9861741844
C128: 123 | D128: 0.1443485602 | E128: -0.746169958 | F128: 0.1443485602 | G128: -0.6261366387
C129: 124 | D129: 0.7090909485 | E129: 1.105222455 | F129: 0.7090909485 | G129: 1.296589492
C130: 125 | D130: 1.498798622 | E130: 0.1305265223 | F130: 1.498798622 | G130: 0.7191489825
C131: 126 | D131: 0.2665521843 | E131: -3.247938799 | F131: 0.2665521843 | G131: -2.870164206
C132: 127 | D132: 0.03019661467 | E132: 1.417177062 | F132: 0.03019661467 | G132: 1.310942878
C133: 128 | D133: 0.9504244659 | E133: 0.4317483713 | F133: 0.9504244659 | G133: 0.7758737049
C134: 129 | D134: -1.385151344 | E134: -0.7526217296 | F134: -1.385151344 | G134: -1.243849747
C135: 130 | D135: =NORMSINV(RAND()) -> 0.807706617 | E135: 0.731877376 | F135: =D135 -> 0.807706617 | G135: =$G$4*D135+(1-$G$4^2)^0.5*E135 -> 0.9938593418
C136: 131 | D136: 1.10816083 | E136: -0.8335491973 | F136: 1.10816083 | G136: -0.3206961263
C137: 132 | D137: -0.262677416 | E137: -0.9995785432 | F137: -0.262677416 | G137: -1.021199834
C138: 133 | D138: 1.093514038 | E138: 1.259595227 | F138: 1.093514038 | G138: 1.591843709
C139: 134 | D139: 0.1016978394 | E139: -1.237796119 | F139: 0.1016978394 | G139: -1.093779747
C140: 135 | D140: 2.017726836 | E140: 0.1868863037 | F140: 2.017726836 | G140: 0.978374861
C141: 136 | D141: -0.8226873183 | E141: -1.656939799 | F141: -0.8226873183 | G141: -1.847685337
C142: 137 | D142: -0.021631581 | E142: 0.1722499002 | F142: -0.021631581 | G142: 0.1492170088
C143: 138 | D143: 1.053513939 | E143: -2.734726322 | F143: 1.053513939 | G143: -2.0850125
C144: 139 | D144: 1.537264921 | E144: -0.196769912 | F144: 1.537264921 | G144: 0.4345633651
C145: 140 | D145: 0.09547918473 | E145: 0.4160219363 | F145: 0.09547918473 | G145: 0.4194820767
C146: 141 | D146: 1.74406695 | E146: 0.5900500232 | F146: 1.74406695 | G146: 1.238416559
C147: 142 | D147: -0.1139289167 | E147: -0.7682495822 | F147: -0.1139289167 | G147: -0.7496839393
C148: 143 | D148: 0.4264207787 | E148: -1.45472662 | F148: 0.4264207787 | G148: -1.162710659
C149: 144 | D149: 0.3289383957 | E149: -1.380908462 | F149: 0.3289383957 | G149: -1.134048153
C150: 145 | D150: -0.2115892803 | E150: 2.186218416 | F150: -0.2115892803 | G150: 1.919066563
C151: 146 | D151: 0.1936535656 | E151: 0.9442315189 | F151: 0.1936535656 | G151: 0.942863908
C152: 147 | D152: 0.02259669841 | E152: 1.026999028 | F152: 0.02259669841 | G152: 0.950298836
C153: 148 | D153: 2.124935378 | E153: 0.8213682287 | F153: 2.124935378 | G153: 1.602770568
C154: 149 | D154: 0.4303635614 | E154: 0.5190526723 | F154: 0.4303635614 | G154: 0.6478650567
C155: 150 | D155: -1.168639205 | E155: 0.2387946754 | F155: -1.168639205 | G155: -0.2485967469
C156: 151 | D156: 0.7352092957 | E156: -0.7069960908 | F156: 0.7352092957 | G156: -0.3538889022
C157: 152 | D157: 0.956861561 | E157: 0.1732857217 | F157: 0.956861561 | G157: 0.5415636117
C158: 153 | D158: 0.4104781515 | E158: 1.417449961 | F158: 0.4104781515 | G158: 1.463305608
C159: 154 | D159: 1.243360468 | E159: 2.012306646 | F159: 1.243360468 | G159: 2.341653692
C160: 155 | D160: 0.0678608342 | E160: 0.2597428509 | F160: 0.0678608342 | G160: 0.2652025887
C161: 156 | D161: 0.7285568309 | E161: 1.087267164 | F161: 0.7285568309 | G161: 1.287919549
C162: 157 | D162: -0.8344844623 | E162: -0.2470890736 | F162: -0.8344844623 | G162: -0.5602546616
C163: 158 | D163: -1.188723893 | E163: 0.2038489807 | F163: -1.188723893 | G163: -0.2886588804
C164: 159 | D164: 0.4390020583 | E164: -1.169592084 | F164: 0.4390020583 | G164: -0.8963480281
C165: 160 | D165: 0.6989604669 | E165: 0.3243909561 | F165: 0.6989604669 | G165: 0.576893409
C166: 161 | D166: 0.5148865987 | E166: 0.6802232246 | F166: 0.5148865987 | G166: 0.8293895227
C167: 162 | D167: =NORMSINV(RAND()) -> -0.2126287855 | E167: -0.8205806493 | F167: -0.2126287855 | G167: -0.837126102
C168: 163 | D168: -1.738512964 | E168: 1.869451875 | F168: -1.738512964 | G168: 1.01797576
C169: 164 | D169: -0.09690443966 | E169: -2.612564014 | F169: -0.09690443966 | G169: -2.433216246
C170: 165 | D170: 1.125931389 | E170: 2.034396008 | F170: 1.125931389 | G170: 2.314927295
C171: 166 | D171: -1.917057123 | E171: -2.265926446 | F171: -1.917057123 | G171: -2.843578741
C172: 167 | D172: -0.8791136604 | E172: -0.4141106843 | F172: -0.8791136604 | G172: -0.7311841755
C173: 168 | D173: -0.1722856323 | E173: 1.823957479 | F173: -0.1722856323 | G173: 1.602770389
C174: 169 | D174: -1.876126972 | E174: 1.563894558 | F174: -1.876126972 | G174: 0.6828822497
C175: 170 | D175: -0.3349060132 | E175: 2.312796484 | F175: -0.3349060132 | G175: 1.985750585
C176: 171 | D176: 2.042761142 | E176: 0.2121914791 | F176: 2.042761142 | G176: 1.01158116
C177: 172 | D177: 0.2082588886 | E177: 0.5095495307 | F177: 0.2082588886 | G177: 0.5503134144
C178: 173 | D178: -0.08361682013 | E178: 0.09353374823 | F178: -0.08361682013 | G178: 0.05227836821
C179: 174 | D179: -0.7446882247 | E179: -0.5547832626 | F179: -0.7446882247 | G179: -0.8063425489
C180: 175 | D180: 1.586141398 | E180: -1.016939312 | F180: 1.586141398 | G180: -0.2975837153
C181: 176 | D181: 1.038752924 | E181: -0.6938204432 | F181: 1.038752924 | G181: -0.2203957702
C182: 177 | D182: 0.3149946957 | E182: -1.523308534 | F182: 0.3149946957 | G182: -1.270137455
C183: 178 | D183: 0.960082354 | E183: -0.7956007537 | F183: 0.960082354 | G183: -0.3451471938
C184: 179 | D184: -0.5784986736 | E184: -0.1763799223 | F184: -0.5784986736 | G184: -0.3930543385
C185: 180 | D185: -0.9475851833 | E185: -2.426290616 | F185: -0.9475851833 | G185: -2.602766154
C186: 181 | D186: -0.4084381101 | E186: -0.1781013686 | F186: -0.4084381101 | G186: -0.3266078446
C187: 182 | D187: -0.1855906691 | E187: 0.8987097401 | F187: -0.1855906691 | G187: 0.7494448147
C188: 183 | D188: -2.574802789 | E188: -0.7631797134 | F188: -2.574802789 | G188: -1.729386877
C189: 184 | D189: -0.8340731669 | E189: -0.1351816351 | F189: -0.8340731669 | G189: -0.4575252819
C190: 185 | D190: -1.783729995 | E190: -0.4991908212 | F190: -1.783729995 | G190: -1.171007943
C191: 186 | D191: -0.5249676345 | E191: -0.7244028029 | F191: -0.5249676345 | G191: -0.8739131894
C192: 187 | D192: 0.8836156929 | E192: 1.709045869 | F192: 0.8836156929 | G192: 1.91981269
C193: 188 | D193: -1.24931553 | E193: 1.382749201 | F193: -1.24931553 | G193: 0.767584364
C194: 189 | D194: 1.081381948 | E194: -1.540956638 | F194: 1.081381948 | G194: -0.9797573086
C195: 190 | D195: -1.804215095 | E195: -0.774997988 | F195: -1.804215095 | G195: -1.431983427
C196: 191 | D196: 1.326104283 | E196: 0.2900071104 | F196: 1.326104283 | G196: 0.7962376203
C197: 192 | D197: -0.7181337813 | E197: -0.6559667981 | F197: -0.7181337813 | G197: -0.8884570137
C198: 193 | D198: -0.2924259969 | E198: -1.057212677 | F198: -0.2924259969 | G198: -1.085921822
C199: 194 | D199: -1.092748249 | E199: 0.8630169721 | F199: =D199 -> -1.092748249 | G199: =$G$4*D199+(1-$G$4^2)^0.5*E199 -> 0.3538688205
C200: 195 | D200: -0.8535811407 | E200: -0.07025306736 | F200: -0.8535811407 | G200: -0.4058204561
... 5 more rows
